fUST/lending_fUST_20251113
["ID","MTS","AMOUNT","RATE_DAILY","PERIOD"]
[393789208,1762989115288,-500.0,0.00027395,2]
[393789209,1762989115313,-500.0,0.00027395,2]
[393789210,1762989115341,-500.0,0.00027395,2]
[393789211,1762989115369,-500.0,0.00027395,2]
[393789212,1762989115394,-500.0,0.00027395,2]
[393789213,1762989115422,-500.0,0.00027395,2]
[393789214,1762989115448,-500.0,0.00027395,2]
[393789215,1762989115474,-500.0,0.00027395,2]
[393789216,1762989115500,-500.0,0.00027395,2]
[393789217,1762989115526,-500.0,0.00027395,2]
[393789218,1762989115554,-500.0,0.00027395,2]
[393789219,1762989115579,-500.0,0.00027395,2]
[393789220,1762989115605,-500.0,0.00027395,2]
[393789221,1762989115630,-500.0,0.00027395,2]
[393789222,1762989115655,-500.0,0.00027395,2]
[393789223,1762989115680,-500.0,0.00027395,2]
[393789224,1762989115707,-500.0,0.00027395,2]
[393789225,1762989115733,-500.0,0.00027395,2]
[393789226,1762989115759,-500.0,0.00027395,2]
[393789227,1762989115783,-500.0,0.00027395,2]
[393789228,1762989115808,-500.0,0.00027395,2]
[393789229,1762989115834,-500.0,0.00027395,2]
[393789230,1762989115860,-500.0,0.00027395,2]
[393789231,1762989115885,-500.0,0.00027395,2]
[393789232,1762989115912,-500.0,0.00027395,2]
[393789233,1762989115938,-500.0,0.00027395,2]
[393789234,1762989115965,-500.0,0.00027395,2]
[393789235,1762989115992,-500.0,0.00027395,2]
[393789236,1762989116017,-500.0,0.00027395,2]
[393789237,1762989116043,-500.0,0.00027395,2]
[393789238,1762989116068,-500.0,0.00027395,2]
[393789239,1762989116093,-500.0,0.00027395,2]
[393789240,1762989116119,-500.0,0.00027395,2]
[393789241,1762989116146,-500.0,0.00027395,2]
[393789242,1762989116172,-500.0,0.00027395,2]
[393789243,1762989116198,-500.0,0.00027395,2]
[393789244,1762989116222,-500.0,0.00027395,2]
[393789245,1762989116248,-500.0,0.00027395,2]
[393789246,1762989116274,-500.0,0.00027395,2]
[393789247,1762989116299,-500.0,0.00027395,2]
[393789248,1762989116324,-500.0,0.00027395,2]
[393789249,1762989116348,-500.0,0.00027395,2]
[393789250,1762989116374,-500.0,0.00027395,2]
[393789251,1762989116400,-500.0,0.00027395,2]
[393789252,1762989116425,-500.0,0.00027395,2]
[393789253,1762989116453,-500.0,0.00027395,2]
[393789254,1762989116478,-500.0,0.00027395,2]
[393789255,1762989116504,-500.0,0.00027395,2]
[393789256,1762989116532,-500.0,0.00027395,2]
[393789257,1762989116561,-205.69584769,0.00027395,2]
[393789258,1762989116672,-294.30415231,0.00027395,2]
[393789259,1762989116699,-500.0,0.00027395,2]
[393789260,1762989116725,-500.0,0.00027395,2]
[393789261,1762989116751,-500.0,0.00027395,2]
[393789262,1762989116777,-500.0,0.00027395,2]
[393789263,1762989116804,-500.0,0.00027395,2]
[393789264,1762989116831,-500.0,0.00027395,2]
[393789265,1762989116858,-500.0,0.00027395,2]
[393789266,1762989116890,-500.0,0.00027395,2]
[393789267,1762989116917,-500.0,0.00027395,2]
[393789268,1762989116942,-500.0,0.00027395,2]
[393789269,1762989116969,-500.0,0.00027395,2]
[393789270,1762989116995,-500.0,0.00027395,2]
[393789271,1762989117022,-500.0,0.00027395,2]
[393789272,1762989117049,-500.0,0.00027395,2]
[393789273,1762989117075,-500.0,0.00027395,2]
[393789274,1762989117102,-500.0,0.00027395,2]
[393789275,1762989117128,-500.0,0.00027395,2]
[393789276,1762989117266,-500.0,0.00027395,2]
[393789277,1762989117292,-500.0,0.00027395,2]
[393789278,1762989117318,-500.0,0.00027395,2]
[393789279,1762989117343,-500.0,0.00027395,2]
[393789280,1762989117369,-500.0,0.00027395,2]
[393789281,1762989117396,-500.0,0.00027395,2]
[393789282,1762989117423,-500.0,0.00027395,2]
[393789283,1762989117448,-500.0,0.00027395,2]
[393789284,1762989117475,-500.0,0.00027395,2]
[393789285,1762989117502,-500.0,0.00027395,2]
[393789286,1762989117528,-500.0,0.00027395,2]
[393789287,1762989117557,-500.0,0.00027395,2]
[393789288,1762989117583,-500.0,0.00027395,2]
[393789289,1762989117611,-500.0,0.00027395,2]
[393789290,1762989117637,-500.0,0.00027395,2]
[393789291,1762989117662,-500.0,0.00027395,2]
[393789292,1762989117688,-500.0,0.00027395,2]
[393789293,1762989117713,-560.24174149,0.00027395,2]
[393789294,1762989117740,-500.0,0.00027395,2]
[393789295,1762989117766,-500.0,0.00027395,2]
[393789296,1762989117793,-500.0,0.00027395,2]
[393789297,1762989117817,-500.0,0.00027395,2]
[393789298,1762989117843,-500.0,0.00027395,2]
[393789299,1762989117869,-500.0,0.00027395,2]
[393789300,1762989117894,-500.0,0.00027395,2]
[393789301,1762989117922,-500.0,0.00027395,2]
[393789302,1762989117949,-500.0,0.00027395,2]
[393789303,1762989117977,-500.0,0.00027395,2]
[393789304,1762989118003,-500.0,0.00027395,2]
[393789305,1762989118031,-500.0,0.00027395,2]
[393789306,1762989118057,-500.0,0.00027395,2]
[393789307,1762989118085,-500.0,0.00027395,2]
[393789308,1762989118111,-145.4541062,0.00027395,2]
[393789309,1762989118168,-354.5458938,0.00027395,2]
[393789310,1762989118194,-500.0,0.00027395,2]
[393789311,1762989118219,-500.0,0.00027395,2]
[393789312,1762989118245,-500.0,0.00027395,2]
[393789313,1762989118271,-500.0,0.00027395,2]
[393789314,1762989118296,-500.0,0.00027395,2]
[393789315,1762989118321,-500.0,0.00027395,2]
[393789316,1762989118346,-500.0,0.00027395,2]
[393789317,1762989118371,-500.0,0.00027395,2]
[393789318,1762989118400,-500.0,0.00027395,2]
[393789319,1762989118426,-500.0,0.00027395,2]
[393789320,1762989118453,-500.0,0.00027395,2]
[393789321,1762989118479,-500.0,0.00027395,2]
[393789322,1762989118504,-442.00081519,0.00027395,2]
[393789323,1762989118530,-500.0,0.00027395,2]
[393789324,1762989118559,-500.0,0.00027395,2]
[393789325,1762989118586,-500.0,0.00027395,2]
[393789326,1762989118612,-500.0,0.00027395,2]
[393789327,1762989118638,-500.0,0.00027395,2]
[393789328,1762989118664,-500.0,0.00027395,2]
[393789329,1762989118692,-500.0,0.00027395,2]
[393789330,1762989118719,-500.0,0.00027395,2]
[393789331,1762989118745,-500.0,0.00027395,2]
[393789332,1762989118771,-500.0,0.00027395,2]
[393789333,1762989118796,-500.0,0.00027395,2]
[393789334,1762989118821,-500.0,0.00027395,2]
[393789335,1762989118846,-500.0,0.00027395,2]
[393789336,1762989118872,-500.0,0.00027395,2]
[393789337,1762989118899,-500.0,0.00027395,2]
[393789338,1762989118924,-500.0,0.00027395,2]
[393789339,1762989118950,-500.0,0.00027395,2]
[393789340,1762989118978,-500.0,0.00027395,2]
[393789341,1762989119003,-640.63985966,0.00027395,2]
[393789342,1762989119028,-640.63985966,0.00027395,2]
[393789343,1762989119057,-640.63985966,0.00027395,2]
[393789344,1762989119081,-640.63985966,0.00027395,2]
[393789345,1762989119105,-640.63985966,0.00027395,2]
[393789346,1762989119130,-640.63985966,0.00027395,2]
[393789347,1762989119155,-640.63985966,0.00027395,2]
[393789348,1762989119180,-640.63985966,0.00027395,2]
[393789349,1762989119206,-640.63985966,0.00027395,2]
[393789350,1762989119232,-500.0,0.00027395,2]
[393789351,1762989119258,-640.63985966,0.00027395,2]
[393789352,1762989119283,-640.63985966,0.00027395,2]
[393789353,1762989119419,-640.63985966,0.00027395,2]
[393789354,1762989119444,-640.63985966,0.00027395,2]
[393789355,1762989119468,-375.13511543,0.00027395,2]
[393789356,1762989119640,-265.50474423,0.00027395,2]
[393789357,1762989119666,-640.63985966,0.00027395,2]
[393789358,1762989119691,-640.63985966,0.00027395,2]
[393789359,1762989119718,-500.0,0.00027395,2]
[393789360,1762989119742,-640.63985966,0.00027395,2]
[393789361,1762989119767,-640.63985966,0.00027395,2]
[393789362,1762989119792,-640.63985966,0.00027395,2]
[393789363,1762989119816,-640.63985966,0.00027395,2]
[393789364,1762989119841,-640.63985966,0.00027395,2]
[393789365,1762989119865,-640.63985966,0.00027395,2]
[393789366,1762989119890,-640.63985966,0.00027395,2]
[393789367,1762989119914,-640.63985966,0.00027395,2]
[393789368,1762989119939,-500.0,0.00027395,2]
[393789369,1762989119965,-500.0,0.00027395,2]
[393789370,1762989119990,-640.63985966,0.00027395,2]
[393789371,1762989120015,-500.0,0.00027395,2]
[393789372,1762989120041,-640.63985966,0.00027395,2]
[393789373,1762989120066,-500.0,0.00027395,2]
[393789374,1762989120091,-500.0,0.00027395,2]
[393789375,1762989120116,-640.63985966,0.00027395,2]
[393789376,1762989120142,-500.0,0.00027395,2]
[393789377,1762989120168,-640.63985966,0.00027395,2]
[393789378,1762989120194,-500.0,0.00027395,2]
[393789379,1762989120219,-500.0,0.00027395,2]
[393789380,1762989120247,-640.63985966,0.00027395,2]
[393789381,1762989120273,-500.0,0.00027395,2]
[393789382,1762989120301,-500.0,0.00027395,2]
[393789383,1762989120338,-640.63985966,0.00027395,2]
[393789384,1762989120378,-616.2653172,0.00027395,2]
[393789385,1762989120416,-640.63985966,0.00027395,2]
[393789386,1762989120455,-500.0,0.00027395,2]
[393789387,1762989120492,-442.98296631,0.00027395,2]
[393789388,1762989120528,-640.63985966,0.00027395,2]
[393789389,1762989120565,-640.63985966,0.00027395,2]
[393789390,1762989120598,-500.0,0.00027395,2]
[393789391,1762989120635,-640.63985966,0.00027395,2]
[393789392,1762989120675,-500.0,0.00027395,2]
[393789393,1762989120711,-640.63985966,0.00027395,2]
[393789394,1762989120745,-500.0,0.00027395,2]
[393789395,1762989120780,-640.63985966,0.00027395,2]
[393789396,1762989120814,-500.0,0.00027395,2]
[393789397,1762989120843,-500.0,0.00027395,2]
[393789398,1762989120877,-640.63985966,0.00027395,2]
[393789399,1762989120908,-440.53020008,0.00027395,2]
[393789400,1762989127777,-300.0,0.00027394,2]
[393789401,1762989127810,-59.46979992,0.00027395,2]
[393789402,1762989127843,-640.63985966,0.00027395,2]
[393789403,1762989127874,-640.63985966,0.00027395,2]
[393789404,1762989127913,-715.87507728,0.00027395,2]
[393789405,1762989127952,-715.87507728,0.00027395,2]
[393789406,1762989127990,-715.87507728,0.00027395,2]
[393789407,1762989128029,-715.87507728,0.00027395,2]
[393789408,1762989128066,-715.87507728,0.00027395,2]
[393789409,1762989128105,-715.87507728,0.00027395,2]
[393789410,1762989128143,-715.87507728,0.00027395,2]
[393789411,1762989128184,-715.87507728,0.00027395,2]
[393789412,1762989128228,-715.87507728,0.00027395,2]
[393789413,1762989128267,-715.87507728,0.00027395,2]
[393789414,1762989128306,-715.87507728,0.00027395,2]
[393789415,1762989128345,-715.87507728,0.00027395,2]
[393789416,1762989128386,-715.87507728,0.00027395,2]
[393789417,1762989128427,-715.87507728,0.00027395,2]
[393789418,1762989128468,-715.87507728,0.00027395,2]
[393789419,1762989128511,-715.87507728,0.00027395,2]
[393789420,1762989128553,-715.87507728,0.00027395,2]
[393789421,1762989128599,-715.87507728,0.00027395,2]
[393789422,1762989128641,-715.87507728,0.00027395,2]
[393789423,1762989128682,-715.87507728,0.00027395,2]
[393789424,1762989128721,-715.87507728,0.00027395,2]
[393789425,1762989128758,-715.87507728,0.00027395,2]
[393789426,1762989128798,-715.87507728,0.00027395,2]
[393789427,1762989128838,-715.87507728,0.00027395,2]
[393789428,1762989128879,-715.87507728,0.00027395,2]
[393789429,1762989128922,-715.87507728,0.00027395,2]
[393789430,1762989128958,-715.87507728,0.00027395,2]
[393789431,1762989128993,-715.87507728,0.00027395,2]
[393789432,1762989129030,-715.87507728,0.00027395,2]
[393789433,1762989129070,-715.87507728,0.00027395,2]
[393789434,1762989129109,-715.87507728,0.00027395,2]
[393789435,1762989129149,-715.87507728,0.00027395,2]
[393789436,1762989129182,-451.2480078,0.00027921,5]
[393789438,1762989145710,150.0,0.0002589,2]
[393789439,1762989195233,481.53714726,0.00018343,2]
[393789440,1762989196032,481.53714726,0.00022382,2]
[393789441,1762989205827,150.0,0.0003288,120]
[393789442,1762989219009,150.0,0.0003288,120]
[393789443,1762989235435,150.0,0.0003288,120]
[393789444,1762989250559,-271.15161033,0.00026421,2]
[393789445,1762989252144,-210.38553693,0.00026421,2]
[393789446,1762989252167,-289.61446307,0.0002779,2]
[393789447,1762989253763,-500.0,0.0002779,2]
[393789448,1762989256515,-235.79722536,0.0002779,2]
[393789449,1762989282646,288.63,0.0003288,120]
[393789450,1762989301798,150.7,5e-05,2]
[393789451,1762989302175,150.7,5.8e-05,2]
[393789452,1762989302727,150.7,6.7e-05,2]
[393789453,1762989302982,150.7,7.5e-05,2]
[393789454,1762989303288,150.7,8.3e-05,2]
[393789455,1762989303588,2.63703227,9.2e-05,2]
[393789456,1762989303618,148.06296773,9.2e-05,2]
[393789457,1762989303889,150.7,0.0001,2]
[393789458,1762989304192,150.7,0.000108,2]
[393789459,1762989304522,150.7,0.000117,2]
[393789460,1762989304837,150.7,0.000125,2]
[393789461,1762989312207,170.0,0.00027975,120]
[393789462,1762989313890,170.0,0.00029373,120]
[393789463,1762989315330,170.0,0.00030842,120]
[393789464,1762989316763,170.0,0.00032384,120]
[393789465,1762989335050,165.0,0.00028015,120]
[393789466,1762989336407,165.0,0.00029416,120]
[393789467,1762989337876,165.0,0.00030886,120]
[393789468,1762989339265,165.0,0.00032431,120]
[393789469,1762989361702,153.29,5e-05,2]
[393789473,1762989438431,170.097982,0.00013699,2]
[393789474,1762989438635,170.097982,0.00020187,2]
[393789475,1762989457243,150.0,0.0002589,2]
[393789477,1762989494271,321.55962782,0.00018343,2]
[393789478,1762989534000,161.228604,0.00027224,120]
[393789483,1762989615047,170.0,0.00028031,120]
[393789484,1762989616721,170.0,0.00029432,120]
[393789485,1762989618525,170.0,0.00030904,120]
[393789486,1762989619991,170.0,0.00032449,120]
[393789488,1762989633269,165.0,0.0002808,120]
[393789489,1762989634550,165.0,0.00029484,120]
[393789490,1762989634825,200.0,0.0003288,120]
[393789491,1762989635803,165.0,0.00030958,120]
[393789492,1762989637085,165.0,0.00032506,120]
[393789494,1762989690749,200.0,0.00032876,120]
[393789495,1762989715567,326.0,0.0003288,120]
[393789496,1762989755021,270.0,0.0003288,120]
[393789499,1762989769009,150.0,0.00025742,2]
[393789500,1762989771669,870.071882,0.00030137,120]
[393789509,1762989929323,169.0,0.00028332,120]
[393789531,1762990064043,464.45761348,0.0002876,120]
[393789549,1762990080827,150.0,0.00025742,2]
[393789564,1762990092576,188.0,0.0002,120]
[393789577,1762990105984,358.19036994,0.0003,120]
[393789585,1762990107140,17225.31730113,0.00017,2]
[393789586,1762990107167,7774.68269887,0.00017,2]
[393789587,1762990108607,715.94800582,0.00025,120]
[393789588,1762990108876,273.08089711,0.00025,120]
[393789589,1762990110142,207.30388302,0.0003,120]
[393789590,1762990110371,599.91481525,0.00028,120]
[393789591,1762990110403,364.78285868,0.0003,120]
[393789597,1762990113965,328.05967078,0.0003,120]
[393789599,1762990114661,545.86712581,0.00028767,120]
[393789600,1762990114941,313.0,0.0002458,2]
[393789601,1762990115004,281.71117736,0.00025,120]
[393789602,1762990115072,295.97254534,0.00027397,120]
[393789603,1762990115492,226.10451592,0.0001536,120]
[393789605,1762990116123,367.23240659,0.000295,120]
[393789609,1762990119839,14144.19539975,0.00024142,2]
[393789611,1762990120629,284.42978321,0.0002,30]
[393789613,1762990121677,170.0,0.0003287,120]
[393789616,1762990121808,259.75248855,0.0003,120]
[393789621,1762990122023,249.0,0.0002,120]
[393789686,1762990208160,235.0,0.00027223,120]
[393789687,1762990209436,235.0,0.00028585,120]
[393789688,1762990229915,174.0,0.00027214,120]
[393789689,1762990231146,174.0,0.00028574,120]
[393789697,1762990232377,174.0,0.00030003,120]
[393789709,1762990232614,-300.0,0.00024141,2]
[393789710,1762990232623,-225.06757274,0.00024141,2]
[393789711,1762990232634,-74.93242726,0.00024141,2]
[393789712,1762990232643,-300.0,0.00024141,2]
[393789713,1762990232652,-7.35784676,0.00024141,2]
[393789714,1762990232663,-558.76753725,0.00024141,2]
[393789715,1762990232674,-633.87461599,0.00024141,2]
[393789716,1762990232683,-20457.37982652,0.00024142,2]
[393789730,1762990233792,174.0,0.00031503,120]
[393789733,1762990238541,-641.2017236,0.00024141,2]
[393789734,1762990238550,-500.0,0.00024141,2]
[393789735,1762990238560,-500.0,0.00024141,2]
[393789736,1762990238569,-500.0,0.00024141,2]
[393789737,1762990238579,-500.0,0.00024141,2]
[393789738,1762990238588,-500.0,0.00024141,2]
[393789739,1762990238599,-440.82661324,0.00024141,2]
[393789740,1762990238610,-500.0,0.00024141,2]
[393789741,1762990238620,-500.0,0.00024141,2]
[393789742,1762990238630,-500.0,0.00024141,2]
[393789743,1762990238642,-500.0,0.00024141,2]
[393789744,1762990238652,-371.38142329,0.00024141,2]
[393789745,1762990238663,-500.0,0.00024141,2]
[393789746,1762990238673,-500.0,0.00024141,2]
[393789747,1762990238683,-500.0,0.00024141,2]
[393789748,1762990238694,-500.0,0.00024141,2]
[393789749,1762990238704,-500.0,0.00024141,2]
[393789750,1762990238714,-500.0,0.00024141,2]
[393789751,1762990238723,-500.0,0.00024141,2]
[393789752,1762990238733,-500.0,0.00024141,2]
[393789753,1762990238743,-500.0,0.00024141,2]
[393789754,1762990238753,-500.0,0.00024141,2]
[393789755,1762990238763,-500.0,0.00024141,2]
[393789756,1762990238773,-500.0,0.00024141,2]
[393789757,1762990238783,-500.0,0.00024141,2]
[393789758,1762990238793,-500.0,0.00024141,2]
[393789759,1762990238803,-500.0,0.00024141,2]
[393789760,1762990238813,-500.0,0.00024141,2]
[393789761,1762990238823,-500.0,0.00024141,2]
[393789762,1762990238832,-500.0,0.00024141,2]
[393789763,1762990238843,-442.84686553,0.00024141,2]
[393789764,1762990238852,-500.0,0.00024141,2]
[393789765,1762990238863,-500.0,0.00024141,2]
[393789766,1762990238873,-500.0,0.00024141,2]
[393789767,1762990238883,-500.0,0.00024141,2]
[393789768,1762990238894,-500.0,0.00024141,2]
[393789769,1762990238904,-500.0,0.00024141,2]
[393789770,1762990238914,-500.0,0.00024141,2]
[393789771,1762990238928,-500.0,0.00024141,2]
[393789772,1762990238937,-500.0,0.00024141,2]
[393789773,1762990238947,-500.0,0.00024141,2]
[393789774,1762990238957,-500.0,0.00024141,2]
[393789775,1762990238967,-500.0,0.00024141,2]
[393789776,1762990238976,-500.0,0.00024141,2]
[393789777,1762990238986,-500.0,0.00024141,2]
[393789778,1762990238997,-500.0,0.00024141,2]
[393789779,1762990239007,-500.0,0.00024141,2]
[393789780,1762990239016,-500.0,0.00024141,2]
[393789781,1762990239026,-500.0,0.00024141,2]
[393789782,1762990239035,-500.0,0.00024141,2]
[393789783,1762990239045,-500.0,0.00024141,2]
[393789784,1762990239055,-500.0,0.00024141,2]
[393789785,1762990239064,-500.0,0.00024141,2]
[393789786,1762990239074,-500.0,0.00024141,2]
[393789787,1762990239083,-181.69265483,0.00024141,2]
[393789788,1762990239093,-500.0,0.00024141,2]
[393789789,1762990239102,-500.0,0.00024141,2]
[393789790,1762990239112,-500.0,0.00024141,2]
[393789791,1762990239122,-500.0,0.00024141,2]
[393789792,1762990239131,-351.14657459,0.00024141,2]
[393789793,1762990239141,-500.0,0.00024141,2]
[393789794,1762990239151,-500.0,0.00024141,2]
[393789795,1762990239161,-500.0,0.00024141,2]
[393789796,1762990239171,-500.0,0.00024141,2]
[393789797,1762990239180,-500.0,0.00024141,2]
[393789798,1762990239190,-500.0,0.00024141,2]
[393789799,1762990239199,-500.0,0.00024141,2]
[393789800,1762990239208,-500.0,0.00024141,2]
[393789801,1762990239216,-500.0,0.00024141,2]
[393789802,1762990239226,-500.0,0.00024141,2]
[393789803,1762990239235,-500.0,0.00024141,2]
[393789804,1762990239243,-500.0,0.00024141,2]
[393789805,1762990239254,-500.0,0.00024141,2]
[393789806,1762990239263,-500.0,0.00024141,2]
[393789807,1762990239272,-500.0,0.00024141,2]
[393789808,1762990239282,-577.17447166,0.00024141,2]
[393789809,1762990239296,-500.0,0.00024141,2]
[393789810,1762990239306,-500.0,0.00024141,2]
[393789811,1762990239315,-500.0,0.00024141,2]
[393789812,1762990239325,-500.0,0.00024141,2]
[393789813,1762990239336,-500.0,0.00024141,2]
[393789814,1762990239345,-15085.42477373,0.00024142,2]
[393789815,1762990239451,-321.55962782,0.00026278,2]
[393789816,1762990239461,-1680.0,0.00026295,2]
[393789817,1762990239471,-1200.0,0.00026366,2]
[393789818,1762990239480,-12537.486626,0.00026367,2]
[393789819,1762990239490,-500.0,0.00026372,2]
[393789820,1762990239499,-500.0,0.00026372,2]
[393789821,1762990239508,-454.25069794,0.00026372,2]
[393789822,1762990239518,-500.0,0.00026372,2]
[393789823,1762990239528,-492.76212189,0.00026372,2]
[393789824,1762990239537,-50000.0,0.00026373,2]
[393789825,1762990239547,-500.0,0.00026373,2]
[393789826,1762990239556,-375.62164543,0.00026373,2]
[393789827,1762990239566,-204.03,0.000264,7]
[393789828,1762990239575,-170.097982,0.00026676,2]
[393789829,1762990239585,-1000.0,0.00026921,2]
[393789830,1762990239594,-161.228604,0.00027224,2]
[393789831,1762990239604,-6116.97837229,0.00027299,2]
[393789832,1762990239614,-500.0,0.00027373,2]
[393789833,1762990239624,-500.0,0.00027373,2]
[393789834,1762990239634,-500.0,0.00027373,2]
[393789835,1762990239643,-500.0,0.00027373,2]
[393789836,1762990239652,-500.0,0.00027373,2]
[393789837,1762990239662,-501.82660943,0.00027373,2]
[393789838,1762990239673,-500.0,0.00027373,2]
[393789839,1762990239683,-500.92677704,0.00027373,2]
[393789840,1762990239692,-500.0,0.00027373,2]
[393789841,1762990239701,-6534.99476101,0.0002738,2]
[393789842,1762990239711,-233.60199621,0.00027383,2]
[393789843,1762990239720,-151.0,0.00027383,2]
[393789844,1762990239730,-574.12855637,0.00027383,2]
[393789845,1762990239740,-250.0,0.00027383,2]
[393789846,1762990239750,-151.0,0.00027383,2]
[393789847,1762990239759,-250.0,0.00027383,2]
[393789848,1762990239768,-151.0,0.00027383,2]
[393789849,1762990239777,-250.0,0.00027383,2]
[393789850,1762990239787,-151.0,0.00027383,2]
[393789851,1762990239797,-151.0,0.00027383,2]
[393789852,1762990239806,-151.0,0.00027383,2]
[393789853,1762990239815,-250.0,0.00027383,2]
[393789854,1762990239825,-151.0,0.00027383,2]
[393789855,1762990239834,-151.0,0.00027383,2]
[393789856,1762990239844,-250.0,0.00027383,2]
[393789857,1762990239853,-151.0,0.00027383,2]
[393789858,1762990239863,-151.0,0.00027383,2]
[393789859,1762990239873,-151.0,0.00027383,2]
[393789860,1762990239882,-250.0,0.00027383,2]
[393789861,1762990239891,-151.0,0.00027383,2]
[393789862,1762990239901,-151.0,0.00027383,2]
[393789863,1762990239910,-151.0,0.00027383,2]
[393789864,1762990239921,-261.74555987,0.00027383,2]
[393789865,1762990239933,-151.0,0.00027383,2]
[393789866,1762990239942,-151.0,0.00027383,2]
[393789867,1762990239953,-151.0,0.00027383,2]
[393789868,1762990239963,-151.0,0.00027383,2]
[393789869,1762990239972,-151.0,0.00027383,2]
[393789870,1762990239982,-151.0,0.00027383,2]
[393789871,1762990239992,-151.0,0.00027383,2]
[393789872,1762990240002,-151.0,0.00027383,2]
[393789873,1762990240012,-151.0,0.00027383,2]
[393789874,1762990240022,-151.0,0.00027383,2]
[393789875,1762990240032,-151.0,0.00027383,2]
[393789876,1762990240042,-151.0,0.00027383,2]
[393789877,1762990240052,-151.0,0.00027383,2]
[393789878,1762990240063,-161.26404366,0.00027383,2]
[393789879,1762990240073,-151.0,0.00027383,2]
[393789880,1762990240082,-151.0,0.00027383,2]
[393789881,1762990240092,-151.0,0.00027383,2]
[393789882,1762990240101,-151.0,0.00027383,2]
[393789883,1762990240112,-236.21401545,0.00027383,2]
[393789884,1762990240121,-209.40437684,0.00027383,2]
[393789886,1762990240130,-250.0,0.00027383,2]
[393789887,1762990240140,-250.0,0.00027383,2]
[393789888,1762990240149,-232.45304374,0.00027383,2]
[393789889,1762990240159,-151.0,0.00027383,2]
[393789890,1762990240168,-151.0,0.00027383,2]
[393789891,1762990240178,-6534.99476101,0.00027391,2]
[393789892,1762990240187,-150.0,0.00027395,2]
[393789893,1762990240197,-300.0,0.00027395,5]
[393789894,1762990240206,-450.0,0.00027395,8]
[393789895,1762990240216,-600.0,0.00027395,11]
[393789896,1762990240226,-842.0742672,0.00027395,14]
[393789897,1762990240235,-500.0,0.00027396,2]
[393789898,1762990240245,-500.0,0.00027396,2]
[393789899,1762990240255,-500.0,0.00027396,2]
[393789900,1762990240264,-1901.1420659,0.00027401,2]
[393789901,1762990240273,-924.1216123,0.00027401,2]
[393789902,1762990240282,-16042.20743628,0.00027401,2]
[393789903,1762990240302,-1402.75763646,0.00027401,2]
[393789908,1762990240890,-3e-08,0.00027383,2]
[393789909,1762990240933,-150.99999997,0.00027383,2]
[393789911,1762990240942,-151.0,0.00027383,2]
[393789912,1762990240951,-151.0,0.00027383,2]
[393789913,1762990240960,-151.0,0.00027383,2]
[393789914,1762990240970,-598.22657075,0.00027401,2]
[393790157,1762990243813,-151.0,0.00027383,2]
[393790158,1762990243823,-151.0,0.00027383,2]
[393790159,1762990243832,-151.0,0.00027383,2]
[393790160,1762990243841,-151.0,0.00027383,2]
[393790161,1762990243851,-151.0,0.00027383,2]
[393790162,1762990243861,-10020.14616341,0.00027401,2]